[Event "*** Titled Tuesday Blitz"]
[Site "Chess.com"]
[Date "2020.10.27"]
[Round "7"]
[White "capatl"]
[Black "Shivagami"]
[Result "1-0"]
[WhiteElo "2490"]
[BlackElo "2271"]
[TimeControl "180+1"]
[EndTime "11:17:39 PDT"]
[Termination "capatl won by resignation"]

1. c4 {[%clk 0:03:00.9]} 1... e5 {[%clk 0:02:54.3]} 2. Nc3 {[%clk 0:03:01]} 2...
Bb4 {[%clk 0:02:52.5]} 3. Qc2 {[%clk 0:02:55.5]} 3... Bxc3 {[%clk 0:02:49.5]} 4.
Qxc3 {[%clk 0:02:55.4]} 4... Qe7 {[%clk 0:02:49.5]} 5. Nf3 {[%clk 0:02:52.3]}
5... d6 {[%clk 0:02:49.5]} 6. d3 {[%clk 0:02:50.8]} 6... Nf6 {[%clk 0:02:47]} 7.
g3 {[%clk 0:02:50.9]} 7... O-O {[%clk 0:02:46.1]} 8. Bg2 {[%clk 0:02:51.2]} 8...
c6 {[%clk 0:02:43.6]} 9. O-O {[%clk 0:02:50.4]} 9... Bf5 {[%clk 0:02:40.5]} 10.
b4 {[%clk 0:02:50]} 10... Nbd7 {[%clk 0:02:38.8]} 11. Bb2 {[%clk 0:02:49.8]}
11... Rfe8 {[%clk 0:02:36.1]} 12. a3 {[%clk 0:02:45]} 12... d5 {[%clk
0:02:33.6]} 13. cxd5 {[%clk 0:02:34.5]} 13... Nxd5 {[%clk 0:02:16.4]} 14. Qb3
{[%clk 0:02:32.1]} 14... e4 {[%clk 0:02:10.3]} 15. Nh4 {[%clk 0:02:16.5]} 15...
Bg4 {[%clk 0:01:51.8]} 16. dxe4 {[%clk 0:02:11.7]} 16... N5f6 {[%clk 0:01:40.4]}
17. f3 {[%clk 0:02:06.7]} 17... Be6 {[%clk 0:01:38.6]} 18. Qc3 {[%clk
0:01:51.4]} 18... g5 {[%clk 0:01:28.3]} 19. Nf5 {[%clk 0:01:41.9]} 19... Bxf5
{[%clk 0:01:27]} 20. exf5 {[%clk 0:01:42.8]} 20... Qxe2 {[%clk 0:01:24.3]} 21.
Rae1 {[%clk 0:01:33.3]} 21... Qb5 {[%clk 0:01:21.4]} 22. Rd1 {[%clk 0:01:32.9]}
22... Qe5 {[%clk 0:01:05.4]} 23. Qxe5 {[%clk 0:01:22.7]} 23... Nxe5 {[%clk
0:01:04.5]} 24. Rfe1 {[%clk 0:01:19.3]} 24... Ned7 {[%clk 0:00:59.3]} 25. Rxe8+
{[%clk 0:01:08.8]} 25... Rxe8 {[%clk 0:00:57.8]} 26. Rd6 {[%clk 0:01:09.1]}
26... Ne5 {[%clk 0:00:22.3]} 27. Bxe5 {[%clk 0:01:04.2]} 1-0

[Event "*** Titled Tuesday Blitz"]
[Site "Chess.com"]
[Date "2020.10.27"]
[Round "7"]
[White "Lenyas66"]
[Black "ftorodent"]
[Result "0-1"]
[WhiteElo "2463"]
[BlackElo "2663"]
[TimeControl "180+1"]
[EndTime "11:17:41 PDT"]
[Termination "ftorodent won by resignation"]

1. e4 {[%clk 0:03:00.9]} 1... c5 {[%clk 0:02:59.5]} 2. Nf3 {[%clk 0:03:00.9]}
2... e6 {[%clk 0:02:59.4]} 3. d4 {[%clk 0:03:00.5]} 3... cxd4 {[%clk 0:02:59.3]}
4. Nxd4 {[%clk 0:03:00.5]} 4... a6 {[%clk 0:02:59.9]} 5. c4 {[%clk 0:02:59.8]}
5... Nf6 {[%clk 0:02:59.1]} 6. Nc3 {[%clk 0:02:58.1]} 6... d6 {[%clk 0:02:59.6]}
7. Be2 {[%clk 0:02:16.7]} 7... Be7 {[%clk 0:02:59.4]} 8. O-O {[%clk 0:02:16.5]}
8... O-O {[%clk 0:02:59.4]} 9. Be3 {[%clk 0:02:15.8]} 9... Qc7 {[%clk
0:02:58.9]} 10. Rc1 {[%clk 0:02:05.5]} 10... Nbd7 {[%clk 0:02:58.9]} 11. b4
{[%clk 0:02:04.7]} 11... b6 {[%clk 0:02:58.6]} 12. g4 {[%clk 0:01:20.6]} 12...
Bb7 {[%clk 0:02:54.6]} 13. f3 {[%clk 0:01:20]} 13... h6 {[%clk 0:02:30.1]} 14.
h4 {[%clk 0:01:11.9]} 14... Nh7 {[%clk 0:02:30]} 15. Qe1 {[%clk 0:01:06.3]}
15... Qd8 {[%clk 0:02:25.2]} 16. Bf2 {[%clk 0:01:02.9]} 16... Rc8 {[%clk
0:02:24]} 17. f4 {[%clk 0:00:56.9]} 17... e5 {[%clk 0:02:18.8]} 18. Nf5 {[%clk
0:00:45.5]} 18... exf4 {[%clk 0:02:15]} 19. Nd5 {[%clk 0:00:37.2]} 19... Bxd5
{[%clk 0:02:13.4]} 20. exd5 {[%clk 0:00:31.3]} 20... Ne5 {[%clk 0:02:13]} 21.
Nxe7+ {[%clk 0:00:24.8]} 21... Qxe7 {[%clk 0:02:12.5]} 22. Bxb6 {[%clk
0:00:24.5]} 22... g5 {[%clk 0:01:58.3]} 23. c5 {[%clk 0:00:20]} 23... Nf6 {[%clk
0:01:49.8]} 24. Bxa6 {[%clk 0:00:19.4]} 24... Ra8 {[%clk 0:01:46.5]} 25. hxg5
{[%clk 0:00:19.7]} 25... hxg5 {[%clk 0:01:46]} 26. Bc4 {[%clk 0:00:17.3]} 26...
Nfxg4 {[%clk 0:01:38.2]} 27. cxd6 {[%clk 0:00:16.9]} 27... Qxd6 {[%clk
0:01:37.4]} 28. Bc5 {[%clk 0:00:16.6]} 28... Qh6 {[%clk 0:01:37.4]} 29. Qe2
{[%clk 0:00:14.5]} 29... f3 {[%clk 0:01:32.3]} 30. Qd2 {[%clk 0:00:14.7]} 30...
Qh4 {[%clk 0:01:32]} 31. d6 {[%clk 0:00:11.8]} 31... Qg3+ {[%clk 0:01:29.1]} 32.
Kh1 {[%clk 0:00:11.9]} 32... Qh4+ {[%clk 0:01:28.7]} 33. Kg1 {[%clk 0:00:11.9]}
33... Kg7 {[%clk 0:01:25.9]} 34. Bd4 {[%clk 0:00:10.7]} 34... Qg3+ {[%clk
0:01:25.8]} 0-1

[Event "*** Titled Tuesday Blitz"]
[Site "Chess.com"]
[Date "2020.10.27"]
[Round "7"]
[White "vladislavkovalev"]
[Black "bascheyaro"]
[Result "1/2-1/2"]
[WhiteElo "2848"]
[BlackElo "2747"]
[TimeControl "180+1"]
[EndTime "11:17:42 PDT"]
[Termination "Game drawn by agreement"]

1. e4 {[%clk 0:02:57.5]} 1... e6 {[%clk 0:03:00.1]} 2. d4 {[%clk 0:02:57.5]}
2... d5 {[%clk 0:03:00.5]} 3. Nd2 {[%clk 0:02:58.3]} 3... c5 {[%clk 0:03:00.8]}
4. Ngf3 {[%clk 0:02:58.5]} 4... Nc6 {[%clk 0:03:01.1]} 5. exd5 {[%clk
0:02:57.9]} 5... exd5 {[%clk 0:03:02]} 6. Bb5 {[%clk 0:02:58.4]} 6... c4 {[%clk
0:03:02.6]} 7. O-O {[%clk 0:02:58.3]} 7... Bd6 {[%clk 0:03:02.8]} 8. Re1+ {[%clk
0:02:58.6]} 8... Ne7 {[%clk 0:03:03.1]} 9. b3 {[%clk 0:02:58.6]} 9... cxb3
{[%clk 0:03:04]} 10. axb3 {[%clk 0:02:59.5]} 10... O-O {[%clk 0:03:04.5]} 11.
Bf1 {[%clk 0:02:59.5]} 11... Bf5 {[%clk 0:03:04.4]} 12. c3 {[%clk 0:02:58.1]}
12... a6 {[%clk 0:03:04.4]} 13. b4 {[%clk 0:02:57.6]} 13... Qd7 {[%clk
0:03:03.1]} 14. Nb3 {[%clk 0:02:57.8]} 14... Rfe8 {[%clk 0:03:00.1]} 15. Nc5
{[%clk 0:02:57.4]} 15... Qc7 {[%clk 0:02:58]} 16. g3 {[%clk 0:02:54.8]} 16...
Bxc5 {[%clk 0:02:39.7]} 17. dxc5 {[%clk 0:02:52.2]} 17... Be4 {[%clk 0:02:37.6]}
18. Ng5 {[%clk 0:02:32.7]} 18... Bg6 {[%clk 0:02:31.3]} 19. Bg2 {[%clk
0:02:25.8]} 19... h6 {[%clk 0:02:27.6]} 20. Bf4 {[%clk 0:02:17.1]} 20... Qd8
{[%clk 0:02:27.5]} 21. Nf3 {[%clk 0:02:16.2]} 21... Be4 {[%clk 0:02:26.2]} 22.
Bf1 {[%clk 0:01:54.8]} 22... Ng6 {[%clk 0:02:17.5]} 23. Bd6 {[%clk 0:01:55]}
23... Qf6 {[%clk 0:02:17.4]} 24. Re3 {[%clk 0:01:50.9]} 24... Rad8 {[%clk
0:02:04.9]} 25. Nd4 {[%clk 0:01:47.2]} 25... Nxd4 {[%clk 0:01:59.9]} 26. Qxd4
{[%clk 0:01:48.1]} 26... Qxd4 {[%clk 0:01:55.4]} 27. cxd4 {[%clk 0:01:48.2]}
27... Bf5 {[%clk 0:01:55.5]} 28. b5 {[%clk 0:01:30.3]} 28... axb5 {[%clk
0:01:38]} 29. Bxb5 {[%clk 0:01:31.2]} 29... Bd7 {[%clk 0:01:37.2]} 30. Rxe8+
{[%clk 0:00:59]} 30... Bxe8 {[%clk 0:01:38.1]} 31. Bxe8 {[%clk 0:00:59.1]} 31...
Rxe8 {[%clk 0:01:38.4]} 32. Rb1 {[%clk 0:00:59.9]} 32... Ne7 {[%clk 0:01:20.8]}
33. Rxb7 {[%clk 0:00:57.2]} 33... Nc6 {[%clk 0:01:20.8]} 34. Rc7 {[%clk
0:00:32.1]} 34... Nxd4 {[%clk 0:01:20.7]} 35. c6 {[%clk 0:00:32.7]} 35... Nb5
{[%clk 0:01:14.7]} 36. Rd7 {[%clk 0:00:33.1]} 36... Nxd6 {[%clk 0:01:13.4]} 37.
Rxd6 {[%clk 0:00:34]} 37... Re1+ {[%clk 0:01:14]} 38. Kg2 {[%clk 0:00:34.7]}
38... Rc1 {[%clk 0:01:14.9]} 1/2-1/2

[Event "*** Titled Tuesday Blitz"]
[Site "Chess.com"]
[Date "2020.10.27"]
[Round "7"]
[White "davigator"]
[Black "Resignify"]
[Result "1-0"]
[WhiteElo "2366"]
[BlackElo "2192"]
[TimeControl "180+1"]
[EndTime "11:17:44 PDT"]
[Termination "davigator won by resignation"]

1. e4 {[%clk 0:03:00.9]} 1... d6 {[%clk 0:03:00.1]} 2. d4 {[%clk 0:03:00.3]}
2... Nf6 {[%clk 0:03:00.6]} 3. Nc3 {[%clk 0:02:57]} 3... g6 {[%clk 0:03:00.8]}
4. Bg5 {[%clk 0:02:55.8]} 4... Bg7 {[%clk 0:02:59.6]} 5. f3 {[%clk 0:02:54.2]}
5... c6 {[%clk 0:02:56.5]} 6. Qd2 {[%clk 0:02:54]} 6... b5 {[%clk 0:02:53]} 7.
O-O-O {[%clk 0:02:53.5]} 7... Qc7 {[%clk 0:02:47.4]} 8. Kb1 {[%clk 0:02:52.7]}
8... Nbd7 {[%clk 0:02:43.1]} 9. Bh6 {[%clk 0:02:51.9]} 9... Bxh6 {[%clk
0:02:42.5]} 10. Qxh6 {[%clk 0:02:51.1]} 10... Nb6 {[%clk 0:02:32.9]} 11. Bd3
{[%clk 0:02:49.9]} 11... Be6 {[%clk 0:02:26.6]} 12. h4 {[%clk 0:02:47.5]} 12...
b4 {[%clk 0:02:13.7]} 13. Nce2 {[%clk 0:02:47.1]} 13... Nc4 {[%clk 0:02:07.4]}
14. Nc1 {[%clk 0:02:46.4]} 14... a5 {[%clk 0:01:47.5]} 15. Nge2 {[%clk
0:02:44.7]} 15... a4 {[%clk 0:01:45.1]} 16. Bxc4 {[%clk 0:02:42.7]} 16... Bxc4
{[%clk 0:01:44.4]} 17. b3 {[%clk 0:02:29.6]} 17... axb3 {[%clk 0:01:42.9]} 18.
cxb3 {[%clk 0:02:29.8]} 18... Bxe2 {[%clk 0:01:35.4]} 19. Nxe2 {[%clk
0:02:29.3]} 19... Qa5 {[%clk 0:01:29.8]} 20. Nc1 {[%clk 0:02:28.8]} 20... c5
{[%clk 0:01:03.7]} 21. dxc5 {[%clk 0:02:27.2]} 21... Qxc5 {[%clk 0:00:52.7]} 22.
Rd2 {[%clk 0:02:24.7]} 22... Rc8 {[%clk 0:00:38]} 23. Rhd1 {[%clk 0:02:22.4]}
23... Nd7 {[%clk 0:00:29.2]} 24. Nd3 {[%clk 0:02:10.2]} 24... Qb6 {[%clk
0:00:19.2]} 25. Qg7 {[%clk 0:02:04.8]} 25... Rf8 {[%clk 0:00:18.6]} 26. Qxh7
{[%clk 0:02:04.9]} 26... Nc5 {[%clk 0:00:15.3]} 27. Nxc5 {[%clk 0:01:59.2]}
27... Qxc5 {[%clk 0:00:14.2]} 28. Qg7 {[%clk 0:01:59]} 28... Qb5 {[%clk
0:00:10.6]} 29. Rd5 {[%clk 0:01:43.8]} 29... Qc6 {[%clk 0:00:10]} 30. Qb2 {[%clk
0:01:43.5]} 30... Qb7 {[%clk 0:00:09.5]} 31. e5 {[%clk 0:01:40.4]} 31... Rc6
{[%clk 0:00:06.6]} 32. exd6 {[%clk 0:01:38.4]} 32... exd6 {[%clk 0:00:06.8]} 33.
Qf6 {[%clk 0:01:31.3]} 33... Kd7 {[%clk 0:00:05.3]} 34. Rxd6+ {[%clk 0:01:30.8]}
34... Rxd6 {[%clk 0:00:04]} 35. Qxd6+ {[%clk 0:01:30.6]} 35... Kc8 {[%clk
0:00:03.6]} 36. Qxf8+ {[%clk 0:01:29.9]} 1-0

[Event "*** Titled Tuesday Blitz"]
[Site "Chess.com"]
[Date "2020.10.27"]
[Round "7"]
[White "Leonid_Starozhilov"]
[Black "amintabatabaei"]
[Result "0-1"]
[WhiteElo "2640"]
[BlackElo "2886"]
[TimeControl "180+1"]
[EndTime "11:17:46 PDT"]
[Termination "amintabatabaei won by resignation"]

1. c4 {[%clk 0:03:00.4]} 1... b6 {[%clk 0:02:58.8]} 2. Nc3 {[%clk 0:03:00.4]}
2... Bb7 {[%clk 0:02:59.7]} 3. Nf3 {[%clk 0:03:00.7]} 3... e6 {[%clk 0:02:59.7]}
4. g3 {[%clk 0:02:59.4]} 4... Bxf3 {[%clk 0:02:58.2]} 5. exf3 {[%clk 0:02:59.7]}
5... Nf6 {[%clk 0:02:59.1]} 6. f4 {[%clk 0:02:57.6]} 6... d5 {[%clk 0:02:58.8]}
7. cxd5 {[%clk 0:02:56]} 7... exd5 {[%clk 0:02:58.7]} 8. Bg2 {[%clk 0:02:56]}
8... c6 {[%clk 0:02:57]} 9. O-O {[%clk 0:02:52.9]} 9... Be7 {[%clk 0:02:57.4]}
10. d4 {[%clk 0:02:49.7]} 10... O-O {[%clk 0:02:58]} 11. g4 {[%clk 0:02:42.1]}
11... g6 {[%clk 0:02:50.4]} 12. f5 {[%clk 0:02:27.2]} 12... Nbd7 {[%clk
0:02:43.1]} 13. g5 {[%clk 0:02:23.8]} 13... Nh5 {[%clk 0:02:43.4]} 14. f6 {[%clk
0:02:20.3]} 14... Bd6 {[%clk 0:02:43.7]} 15. Qg4 {[%clk 0:01:48.1]} 15... Re8
{[%clk 0:02:43.1]} 16. Be3 {[%clk 0:01:41.9]} 16... Nf8 {[%clk 0:02:42.8]} 17.
Rfe1 {[%clk 0:01:26.6]} 17... h6 {[%clk 0:02:42.8]} 18. h4 {[%clk 0:01:26]}
18... Qd7 {[%clk 0:02:42.2]} 19. Qxd7 {[%clk 0:01:10.4]} 19... Nxd7 {[%clk
0:02:43.1]} 20. Ne2 {[%clk 0:01:11]} 20... Nf8 {[%clk 0:02:37.9]} 21. Rac1
{[%clk 0:01:03.6]} 21... Rac8 {[%clk 0:02:34.4]} 22. Bh3 {[%clk 0:01:02.7]}
22... Rc7 {[%clk 0:02:31.6]} 23. Bg4 {[%clk 0:01:02.5]} 23... Ne6 {[%clk
0:02:19]} 24. Bxh5 {[%clk 0:00:54.9]} 24... gxh5 {[%clk 0:02:19.9]} 25. f4
{[%clk 0:00:52.8]} 25... Nxg5 {[%clk 0:02:15.3]} 26. hxg5 {[%clk 0:00:36.9]}
26... Rxe3 {[%clk 0:02:11.5]} 27. Kf2 {[%clk 0:00:37]} 27... Re4 {[%clk
0:02:10.6]} 28. gxh6 {[%clk 0:00:28.2]} 28... Bxf4 {[%clk 0:01:59.7]} 29. Rg1+
{[%clk 0:00:27.9]} 29... Kh7 {[%clk 0:01:59.9]} 30. Rc3 {[%clk 0:00:10.9]} 30...
Bxh6 {[%clk 0:01:46.2]} 31. Rcg3 {[%clk 0:00:07.9]} 31... Rc8 {[%clk 0:01:36.9]}
32. Rg7+ {[%clk 0:00:06.6]} 32... Bxg7 {[%clk 0:01:36.8]} 33. Rxg7+ {[%clk
0:00:07.5]} 33... Kh6 {[%clk 0:01:36.1]} 34. Rxf7 {[%clk 0:00:06.2]} 34... Kg6
{[%clk 0:01:36.3]} 35. Rxa7 {[%clk 0:00:05.7]} 35... Kxf6 {[%clk 0:01:36.4]} 36.
Rh7 {[%clk 0:00:06]} 36... Kg6 {[%clk 0:01:36.5]} 37. Rd7 {[%clk 0:00:05.9]}
37... Rf8+ {[%clk 0:01:36.8]} 0-1

[Event "*** Titled Tuesday Blitz"]
[Site "Chess.com"]
[Date "2020.10.27"]
[Round "7"]
[White "Mbneu"]
[Black "Sesleria"]
[Result "1-0"]
[WhiteElo "2191"]
[BlackElo "1884"]
[TimeControl "180+1"]
[EndTime "11:17:46 PDT"]
[Termination "Mbneu won by resignation"]

1. d4 {[%clk 0:03:00.9]} 1... Nf6 {[%clk 0:02:59]} 2. c4 {[%clk 0:02:53.8]} 2...
e6 {[%clk 0:02:58.7]} 3. Nc3 {[%clk 0:02:52.6]} 3... Bb4 {[%clk 0:02:58.7]} 4.
Bg5 {[%clk 0:02:50.7]} 4... c5 {[%clk 0:02:58.4]} 5. d5 {[%clk 0:02:41.3]} 5...
exd5 {[%clk 0:02:58.5]} 6. cxd5 {[%clk 0:02:40.2]} 6... Qe7 {[%clk 0:02:54.3]}
7. e3 {[%clk 0:02:37.8]} 7... Qe5 {[%clk 0:02:46.1]} 8. Nf3 {[%clk 0:02:33.1]}
8... Bxc3+ {[%clk 0:02:44.5]} 9. bxc3 {[%clk 0:02:32.6]} 9... Qxc3+ {[%clk
0:02:44.6]} 10. Nd2 {[%clk 0:02:32.5]} 10... Ne4 {[%clk 0:02:44.1]} 11. Rc1
{[%clk 0:02:27.5]} 11... Qa5 {[%clk 0:02:43.8]} 12. Bf4 {[%clk 0:02:18.1]} 12...
O-O {[%clk 0:02:19.3]} 13. Bd3 {[%clk 0:02:13.2]} 13... Qxd2+ {[%clk 0:01:29.5]}
14. Qxd2 {[%clk 0:02:14.1]} 14... Nxd2 {[%clk 0:01:30.1]} 15. Kxd2 {[%clk
0:02:13.6]} 15... b6 {[%clk 0:01:21.6]} 16. Bd6 {[%clk 0:02:09.8]} 16... Re8
{[%clk 0:01:18.4]} 17. Rb1 {[%clk 0:01:47.7]} 17... Bb7 {[%clk 0:00:52.5]} 18.
e4 {[%clk 0:01:30]} 18... c4 {[%clk 0:00:36.7]} 19. Bxc4 {[%clk 0:01:17.4]}
19... Rxe4 {[%clk 0:00:36.3]} 20. Rhe1 {[%clk 0:01:16.3]} 20... Rxe1 {[%clk
0:00:29.1]} 21. Rxe1 {[%clk 0:01:15.2]} 21... h5 {[%clk 0:00:25.7]} 22. Re8+
{[%clk 0:01:12]} 22... Kh7 {[%clk 0:00:25.9]} 23. Rxb8 {[%clk 0:01:11.4]} 23...
Rxb8 {[%clk 0:00:20.4]} 24. Bxb8 {[%clk 0:01:10.8]} 24... b5 {[%clk 0:00:20.5]}
25. Bxb5 {[%clk 0:01:07]} 25... Bxd5 {[%clk 0:00:20.6]} 26. g3 {[%clk
0:01:06.1]} 26... Bxa2 {[%clk 0:00:20.5]} 27. Bxa7 {[%clk 0:01:04.5]} 27... Kg6
{[%clk 0:00:19.7]} 28. Bxd7 {[%clk 0:01:02.7]} 28... Kg5 {[%clk 0:00:18.6]} 29.
h4+ {[%clk 0:01:00.5]} 29... Kf6 {[%clk 0:00:18]} 1-0

[Event "*** Titled Tuesday Blitz"]
[Site "Chess.com"]
[Date "2020.10.27"]
[Round "7"]
[White "Firouzja2003"]
[Black "Zkid"]
[Result "1-0"]
[WhiteElo "3065"]
[BlackElo "2807"]
[TimeControl "180+1"]
[EndTime "11:17:47 PDT"]
[Termination "Firouzja2003 won by resignation"]

1. e3 {[%clk 0:03:00.9]} 1... d5 {[%clk 0:02:55.7]} 2. c4 {[%clk 0:03:01]} 2...
d4 {[%clk 0:02:53.2]} 3. exd4 {[%clk 0:03:01]} 3... Qxd4 {[%clk 0:02:52.7]} 4.
Nf3 {[%clk 0:03:01]} 4... Qd8 {[%clk 0:02:52.3]} 5. d4 {[%clk 0:03:01.4]} 5...
Bg4 {[%clk 0:02:52.1]} 6. Qb3 {[%clk 0:02:59.9]} 6... Nc6 {[%clk 0:02:45.8]} 7.
d5 {[%clk 0:02:59.9]} 7... Bxf3 {[%clk 0:02:37.8]} 8. Qxf3 {[%clk 0:02:59.8]}
8... Nd4 {[%clk 0:02:36.1]} 9. Qe4 {[%clk 0:02:58.9]} 9... c5 {[%clk 0:02:30.9]}
10. dxc6 {[%clk 0:02:59.1]} 10... Nxc6 {[%clk 0:02:29.4]} 11. Nc3 {[%clk
0:02:57.8]} 11... Nf6 {[%clk 0:02:28.8]} 12. Qc2 {[%clk 0:02:58.1]} 12... e6
{[%clk 0:02:26.5]} 13. Be3 {[%clk 0:02:58.1]} 13... Ng4 {[%clk 0:02:17]} 14. Bf4
{[%clk 0:02:50.9]} 14... Bc5 {[%clk 0:02:10.5]} 15. Bg3 {[%clk 0:02:51]} 15...
O-O {[%clk 0:02:00]} 16. Rd1 {[%clk 0:02:48.7]} 16... Qf6 {[%clk 0:01:46.1]} 17.
Bd3 {[%clk 0:02:43.3]} 17... Nb4 {[%clk 0:01:39.9]} 18. Bxh7+ {[%clk 0:02:38.8]}
18... Kh8 {[%clk 0:01:39.8]} 19. Qe2 {[%clk 0:02:38.9]} 19... Kxh7 {[%clk
0:01:22.4]} 20. Qxg4 {[%clk 0:02:38.4]} 20... Nc2+ {[%clk 0:01:22.4]} 21. Kd2
{[%clk 0:02:23.3]} 21... Nb4 {[%clk 0:01:18.8]} 22. Qh5+ {[%clk 0:02:19.2]}
22... Qh6+ {[%clk 0:01:14.5]} 23. Qxh6+ {[%clk 0:02:19.5]} 23... gxh6 {[%clk
0:01:14.1]} 24. Ne4 {[%clk 0:02:20.1]} 24... Be7 {[%clk 0:01:05.1]} 25. Bd6
{[%clk 0:01:51.5]} 25... Rfd8 {[%clk 0:00:58.8]} 26. Kc3 {[%clk 0:01:51.3]}
26... Nxa2+ {[%clk 0:00:43.1]} 27. Kb3 {[%clk 0:01:47.2]} 27... Nc1+ {[%clk
0:00:43.2]} 28. Kc2 {[%clk 0:01:32]} 28... Bxd6 {[%clk 0:00:42.7]} 29. Nxd6
{[%clk 0:01:31.4]} 29... Ne2 {[%clk 0:00:41.8]} 30. Nxf7 {[%clk 0:01:23.6]}
30... Rdc8 {[%clk 0:00:18.6]} 31. Rd7 {[%clk 0:01:18.2]} 31... Kg6 {[%clk
0:00:18]} 32. Re1 {[%clk 0:01:12.6]} 32... Rxc4+ {[%clk 0:00:15.5]} 33. Kd3
{[%clk 0:01:12.8]} 33... Rf4 {[%clk 0:00:10.4]} 34. Ne5+ {[%clk 0:01:12.8]} 1-0

[Event "*** Titled Tuesday Blitz"]
[Site "Chess.com"]
[Date "2020.10.27"]
[Round "7"]
[White "garicradomir"]
[Black "AndrewMaco"]
[Result "0-1"]
[WhiteElo "2349"]
[BlackElo "2663"]
[TimeControl "180+1"]
[EndTime "11:17:47 PDT"]
[Termination "AndrewMaco won by resignation"]

1. e4 {[%clk 0:03:00.9]} 1... c6 {[%clk 0:02:52.8]} 2. d4 {[%clk 0:03:00.2]}
2... d5 {[%clk 0:02:52.1]} 3. e5 {[%clk 0:03:00.8]} 3... Bf5 {[%clk 0:02:51.9]}
4. Bd3 {[%clk 0:03:01.4]} 4... Bxd3 {[%clk 0:02:48.9]} 5. Qxd3 {[%clk
0:03:02.3]} 5... e6 {[%clk 0:02:49.5]} 6. Ne2 {[%clk 0:03:02.1]} 6... c5 {[%clk
0:02:47.5]} 7. c3 {[%clk 0:03:02.3]} 7... Nc6 {[%clk 0:02:47.6]} 8. O-O {[%clk
0:03:00.3]} 8... cxd4 {[%clk 0:02:45.1]} 9. cxd4 {[%clk 0:02:59.9]} 9... Nge7
{[%clk 0:02:45.7]} 10. Nd2 {[%clk 0:02:59.9]} 10... Nf5 {[%clk 0:02:45.8]} 11.
Nf3 {[%clk 0:02:59.3]} 11... Be7 {[%clk 0:02:46.3]} 12. g4 {[%clk 0:02:59.4]}
12... Nh4 {[%clk 0:02:42.2]} 13. Nxh4 {[%clk 0:02:59.7]} 13... Bxh4 {[%clk
0:02:43.1]} 14. f4 {[%clk 0:03:00.3]} 14... Qb6 {[%clk 0:02:36.6]} 15. Be3
{[%clk 0:02:55.2]} 15... g6 {[%clk 0:02:30.4]} 16. a3 {[%clk 0:02:54.4]} 16...
Be7 {[%clk 0:02:14.8]} 17. b4 {[%clk 0:02:54.2]} 17... h5 {[%clk 0:02:14.8]} 18.
f5 {[%clk 0:02:52.8]} 18... gxf5 {[%clk 0:02:05.4]} 19. gxf5 {[%clk 0:02:52.3]}
19... O-O-O {[%clk 0:02:03.7]} 20. Nf4 {[%clk 0:02:45.8]} 20... Bg5 {[%clk
0:01:39.7]} 21. Rac1 {[%clk 0:02:40.3]} 21... Kb8 {[%clk 0:01:37.6]} 22. fxe6
{[%clk 0:02:39.6]} 22... Bxf4 {[%clk 0:01:37.4]} 23. Rxf4 {[%clk 0:02:39.4]}
23... fxe6 {[%clk 0:01:37.6]} 24. Rf7 {[%clk 0:02:36.6]} 24... Rdg8+ {[%clk
0:01:33.2]} 25. Kh1 {[%clk 0:02:36.2]} 25... Rg4 {[%clk 0:01:26.9]} 26. b5
{[%clk 0:02:26.7]} 26... Na5 {[%clk 0:01:25.4]} 27. Rc5 {[%clk 0:02:11.3]} 27...
Nc4 {[%clk 0:01:22.9]} 28. Bf2 {[%clk 0:01:47.4]} 28... Rhg8 {[%clk 0:01:13.8]}
29. h3 {[%clk 0:01:36.9]} 29... R4g7 {[%clk 0:00:59.9]} 30. Qf3 {[%clk
0:01:29.3]} 30... Qd8 {[%clk 0:00:52.6]} 31. Rf6 {[%clk 0:00:53.8]} 31... Nd2
{[%clk 0:00:50.2]} 32. Qxh5 {[%clk 0:00:48.6]} 32... Ne4 {[%clk 0:00:49]} 33.
Rxe6 {[%clk 0:00:42.9]} 33... Nxf2+ {[%clk 0:00:47.1]} 0-1

[Event "*** Titled Tuesday Blitz"]
[Site "Chess.com"]
[Date "2020.10.27"]
[Round "7"]
[White "BursaBBSatranc"]
[Black "MaxLeto"]
[Result "1-0"]
[WhiteElo "2512"]
[BlackElo "2340"]
[TimeControl "180+1"]
[EndTime "11:17:48 PDT"]
[Termination "BursaBBSatranc won on time"]

1. d4 {[%clk 0:03:00.9]} 1... Nf6 {[%clk 0:02:37.5]} 2. Bf4 {[%clk 0:02:56.6]}
2... g6 {[%clk 0:02:35.2]} 3. e3 {[%clk 0:02:56.9]} 3... Bg7 {[%clk 0:02:35.6]}
4. Nf3 {[%clk 0:02:57.6]} 4... d6 {[%clk 0:02:34.9]} 5. h3 {[%clk 0:02:58.2]}
5... O-O {[%clk 0:02:23.3]} 6. Be2 {[%clk 0:02:58.2]} 6... Nbd7 {[%clk
0:02:05.9]} 7. O-O {[%clk 0:02:58.2]} 7... Qe8 {[%clk 0:02:05.3]} 8. c4 {[%clk
0:02:54.5]} 8... e5 {[%clk 0:02:02.7]} 9. Bh2 {[%clk 0:02:55.1]} 9... Qe7 {[%clk
0:01:57.1]} 10. Nc3 {[%clk 0:02:55]} 10... c6 {[%clk 0:01:56.7]} 11. Re1 {[%clk
0:02:54.5]} 11... Ne8 {[%clk 0:01:36]} 12. Rc1 {[%clk 0:02:46.5]} 12... f5
{[%clk 0:01:26.2]} 13. b4 {[%clk 0:02:42.6]} 13... Nef6 {[%clk 0:00:48]} 14. b5
{[%clk 0:02:33.7]} 14... Rd8 {[%clk 0:00:36.3]} 15. bxc6 {[%clk 0:02:32.7]}
15... bxc6 {[%clk 0:00:37.2]} 16. Qa4 {[%clk 0:02:33.1]} 16... Bb7 {[%clk
0:00:35.2]} 17. Rb1 {[%clk 0:02:33.3]} 17... Nb6 {[%clk 0:00:35]} 18. Qa3 {[%clk
0:02:32.7]} 18... Ne4 {[%clk 0:00:22.4]} 19. Nxe4 {[%clk 0:02:08.8]} 19... fxe4
{[%clk 0:00:23.3]} 20. Nxe5 {[%clk 0:02:09.2]} 20... c5 {[%clk 0:00:06.2]} 21.
dxc5 {[%clk 0:01:32.4]} 21... dxe5 {[%clk 0:00:05.8]} 22. Rb3 {[%clk 0:01:26.4]}
22... Nc8 {[%clk 0:00:03.3]} 23. c6 {[%clk 0:01:19.6]} 23... Qxa3 {[%clk
0:00:02.1]} 24. cxb7 {[%clk 0:01:19.7]} 24... Qxb3 {[%clk 0:00:02]} 25. bxa8=Q
{[%clk 0:01:19.7]} 25... Qc3 {[%clk 0:00:01.5]} 26. Rf1 {[%clk 0:01:16]} 26...
Qd2 {[%clk 0:00:01.3]} 27. Bg4 {[%clk 0:01:15.6]} 27... Nb6 {[%clk 0:00:01.5]}
28. Qxe4 {[%clk 0:01:13.7]} 1-0